bitfinex/quotes_ETHUSD_20240828
["timestamp","ask_amount","ask_price","bid_price","bid_amount"]
[1724866100032,3.96261,2523.6,2523.1,4.0220438]
[1724866100193,4.26236,2523.8,2523.2,6.29011]
[1724866100389,4.26236,2523.8,2523.2,6.29002]
[1724866100588,0.46774503,2523.7,2523.3,0.06488417]
[1724866101025,0.46774503,2523.7,2523.2,6.29002]
[1724866101198,4.43026503,2523.7,2523.4,0.06471306]
[1724866101527,4.43026503,2523.7,2523.5,0.06454195]
[1724866101733,4.43026503,2523.7,2523.2,6.29002]
[1724866101914,0.8692625,2523.6,2523.0,3.96343]
[1724866102237,3.96277,2523.5,2523.0,3.96343]
[1724866102824,0.8692625,2523.6,2523.0,3.96343]
[1724866103124,7.92504,2523.7,2523.1,3.96327]
[1724866103333,3.96262,2523.6,2522.9,3.96355]
[1724866103544,3.96283,2523.5,2522.9,3.96355]
[1724866104132,3.96291,2523.4,2522.9,3.96355]
[1724866104807,3.96346,2523.1,2522.6,6.27084]
[1724866105199,3.96354,2523.0,2522.6,6.27084]
[1724866105548,3.96354,2523.0,2522.4,3.96437]
[1724866105549,3.96378,2522.9,2522.4,3.96437]
[1724866105759,3.96386,2522.8,2522.4,3.96437]
[1724866106255,3.96386,2522.8,2522.3,2.4019]
[1724866107069,3.96446,2522.5,2522.0,6.24508]
[1724866107229,3.96449,2522.4,2522.0,2.2801]
[1724866107552,4.360939,2522.4,2522.0,2.2801]
[1724866107839,4.360939,2522.4,2522.1,0.06687246]
[1724866108036,3.96435,2522.5,2522.1,0.06687246]
[1724866109011,3.96427,2522.6,2522.1,4.03181246]
[1724866109217,4.360697,2522.6,2522.1,4.03181246]
[1724866109526,2.4232,2522.9,2522.3,3.96461]
[1724866110036,2.4232,2522.9,2522.4,0.05474699]
[1724866110345,3.96393,2522.8,2522.4,0.05474699]
[1724866110562,3.96393,2522.8,2522.2,3.9647]
[1724866110715,0.638713,2522.7,2522.2,3.9647]
[1724866110913,7.92733,2523.0,2522.4,3.96446]
[1724866111143,7.92733,2523.0,2522.4,7.92885]
[1724866111144,7.92728,2523.0,2522.4,7.92885]
[1724866111349,0.792728,2522.9,2522.5,0.05056516]
[1724866111661,4.756418,2522.9,2522.5,0.05056516]
[1724866112190,3.96385,2522.8,2522.5,0.05056516]
[1724866113756,7.92779,2522.8,2522.5,0.05056516]
[1724866113958,0.8720518,2522.7,2522.3,3.96463]
[1724866114256,3.96403,2522.7,2522.6,0.0504057]
[1724866114426,3.96403,2522.7,2522.1,3.96479]
[1724866114635,3.96403,2522.7,2522.6,0.0504057]
[1724866114821,4.756818,2522.7,2522.6,0.0504057]
[1724866115017,3.96434,2522.5,2522.0,6.24508]
[1724866115819,3.96434,2522.5,2522.1,3.96494]
[1724866116159,3.96434,2522.5,2522.0,6.2452]
[1724866116348,4.8364558,2522.5,2522.0,6.2452]
[1724866116864,3.96487,2522.2,2521.6,3.9656]
[1724866117017,3.96487,2522.2,2521.5,6.29636]
[1724866117018,3.96527,2521.9,2521.5,2.3305]
[1724866117225,3.96519,2522.0,2521.5,2.3305]
[1724866117421,3.96526,2521.9,2521.5,2.3305]
[1724866118180,3.96526,2521.9,2521.2,2.3561]
[1724866118181,3.96545,2521.8,2521.2,2.3561]
[1724866118376,3.96572,2521.7,2521.2,2.3561]
[1724866118520,3.96585,2521.6,2520.9,6.32281]
[1724866118725,3.96589,2521.5,2520.9,6.32281]
[1724866119834,4.758967,2521.6,2521.0,3.96659]
[1724866120168,0.4758967,2521.5,2520.6,2.3561]
[1724866120321,0.4758967,2521.5,2520.1,3.96806]
[1724866120322,2.4022,2521.4,2520.1,6.3241]
[1724866120526,7.93384,2520.9,2520.3,3.96776]
[1724866120831,3.96688,2520.9,2520.3,3.96776]
[1724866121277,3.962723,2521.1,2520.5,3.96735]
[1724866121572,3.962723,2521.1,2520.6,2.43543986]
[1724866121719,7.929363,2521.1,2520.6,2.43543986]
[1724866121923,3.962723,2521.1,2520.6,2.3561]
[1724866122177,3.96653,2521.1,2520.6,2.3561]
[1724866122466,7.9326,2521.3,2520.6,6.32339]
[1724866122626,3.96626,2521.3,2520.6,2.3561]
[1724866122818,3.96617,2521.4,2520.7,4.09094038]
[1724866123051,3.96621,2521.3,2520.8,0.07932787]
[1724866123363,3.96594,2521.5,2520.8,0.07932787]
[1724866123571,3.96594,2521.5,2520.9,4.01453336]
[1724866123774,7.93193,2521.5,2520.9,4.01453336]
[1724866123924,3.96594,2521.5,2520.9,4.01453336]
[1724866124631,3.96576,2521.6,2521.0,6.42037405]
[1724866124973,3.96576,2521.6,2521.1,0.04746994]
[1724866125270,7.93196,2521.5,2521.1,0.04746994]
[1724866125639,3.96594,2521.5,2521.1,0.04746994]
[1724866126369,7.93192,2521.5,2521.1,0.04746994]
[1724866126551,3.96606,2521.4,2521.1,0.04746994]
[1724866126881,3.96594,2521.5,2520.9,3.96675]
[1724866127041,3.96608,2521.4,2521.0,0.07932406]
[1724866127249,3.96608,2521.4,2521.0,0.04754274]
[1724866127660,3.96622,2521.3,2520.8,3.96684]
[1724866127845,3.96622,2521.3,2521.1,0.04740112]
[1724866128061,3.96622,2521.3,2520.8,3.96684]
[1724866128265,3.96676,2521.0,2520.7,2.2917]
[1724866128461,3.96642,2521.2,2520.7,2.2917]
[1724866128664,3.96642,2521.2,2520.7,6.25882]
[1724866129059,3.96642,2521.2,2520.7,2.2917]
[1724866129629,3.96654,2521.1,2520.7,2.2917]
[1724866129778,3.96616,2521.4,2520.7,2.2917]
[1724866130089,6.23934,2521.8,2520.7,2.2917]
[1724866130090,3.96585,2521.6,2520.9,3.96683]
[1724866130246,3.96585,2521.6,2521.1,2.4831]
[1724866130688,3.96583,2521.6,2521.1,2.4831]
[1724866130969,3.96639,2521.2,2520.8,2.4831]
[1724866131142,3.96639,2521.2,2520.5,3.96746]
[1724866131143,3.96684,2520.9,2520.5,2.4831]
[1724866132380,3.96659,2521.1,2520.6,0.07934176]
[1724866132696,3.96659,2521.1,2520.5,2.4831]
[1724866132697,3.96676,2521.0,2520.5,2.4831]
[1724866133000,3.96686,2520.9,2520.5,2.4831]
[1724866133520,3.96702,2520.8,2520.5,2.4831]
[1724866134407,3.96677,2521.0,2520.5,2.4831]
[1724866134619,3.96658,2521.1,2520.5,2.4831]
[1724866134825,3.96683,2520.9,2520.5,2.4831]
[1724866135479,7.93326,2521.1,2520.3,2.4831]
[1724866135819,3.96637,2521.2,2520.4,0.62933994]
[1724866136188,3.96637,2521.2,2520.6,3.96718]
[1724866136383,3.96637,2521.2,2520.7,0.07933453]
[1724866136887,3.96659,2521.1,2520.4,4.51751]
[1724866137281,3.96668,2521.0,2520.4,4.51751]
[1724866137480,3.96668,2521.0,2520.3,2.4831]
[1724866137726,3.96701,2520.8,2520.3,2.4831]
[1724866138018,3.96697,2520.9,2520.4,0.04564974]
[1724866138385,3.96717,2520.7,2520.4,0.04564974]
[1724866138731,3.96746,2520.5,2520.4,0.04564974]
[1724866139020,3.96732,2520.6,2520.0,2.3374]
[1724866139223,3.96727,2520.7,2520.4,0.04564974]
[1724866139514,6.4024,2521.0,2520.1,4.20172]
[1724866139717,3.9667,2521.0,2520.5,0.04553948]
[1724866139879,3.9667,2521.0,2520.4,2.51174392]
[1724866140075,0.39667,2520.9,2520.6,0.04542924]
[1724866140318,0.39667,2520.9,2520.5,0.04553948]
[1724866140492,4.36358,2520.9,2520.7,0.045319]
[1724866140701,7.93386,2520.9,2520.6,0.04542924]
[1724866141017,7.93386,2520.9,2520.7,0.045319]
[1724866141018,3.96699,2520.8,2520.7,0.045319]
[1724866141230,3.96754,2520.5,2520.0,2.3856]
[1724866141385,3.96797,2520.2,2519.7,2.3856]
[1724866142013,7.93547,2520.4,2519.7,6.3543]
[1724866142177,3.96787,2520.3,2519.7,6.3543]
[1724866142687,3.96787,2520.3,2519.7,2.3856]
[1724866142917,3.96818,2520.1,2519.5,3.96892]
[1724866143229,3.96809,2520.2,2519.5,3.96892]
[1724866143884,3.96809,2520.2,2519.6,3.96875]
[1724866144082,2.73610158,2520.6,2519.6,3.96875]
[1724866144083,6.70351158,2520.6,2519.7,4.04794519]
[1724866144284,3.96762,2520.4,2519.7,3.96858]
[1724866144483,8.35045158,2520.6,2519.8,0.07935966]
[1724866144708,3.96754,2520.5,2519.9,3.96839]
[1724866144909,3.96791,2520.3,2519.6,2.4669]
[1724866145093,3.96791,2520.3,2519.7,7.93726]
[1724866145494,3.96791,2520.3,2519.7,3.96862]
[1724866146435,3.96753,2520.5,2519.7,3.96862]
[1724866146582,3.96763,2520.4,2519.9,2.4387]
[1724866146788,3.96753,2520.5,2519.9,2.4387]
[1724866147184,3.96779,2520.3,2519.9,2.4387]
[1724866148035,7.93566,2520.3,2519.9,2.4387]
[1724866148192,7.93566,2520.3,2519.7,3.96862]
[1724866148393,3.96779,2520.3,2519.7,3.96862]
[1724866149117,7.93571,2520.3,2519.7,3.96862]
[1724866149314,3.96779,2520.3,2519.7,3.96862]
[1724866149622,3.96779,2520.3,2519.8,0.07936238]
[1724866150794,3.96779,2520.3,2519.8,4.04791238]
[1724866151034,3.96758,2520.5,2519.9,3.96832]
[1724866151333,3.96758,2520.5,2520.0,2.46705739]
[1724866151514,3.96758,2520.5,2520.0,2.3877]
[1724866152261,7.93516,2520.5,2520.0,2.3877]
[1724866152460,8.72498879,2520.5,2520.0,2.3877]
[1724866152825,8.72498879,2520.5,2520.1,0.04506502]
[1724866153162,3.96764,2520.4,2520.1,0.04506502]
[1724866153371,3.96787,2520.3,2520.1,0.04506502]
[1724866153519,3.96787,2520.3,2519.7,3.9687]
[1724866153520,4.44363988,2520.3,2519.7,3.9687]
[1724866153723,3.96795,2520.2,2519.7,3.9687]
[1724866153960,3.96795,2520.2,2519.8,0.04539592]
[1724866154120,3.96795,2520.2,2519.7,3.9687]
[1724866154324,3.96811,2520.1,2519.8,0.04539592]
[1724866154536,3.96811,2520.1,2519.6,2.3141]
[1724866154738,7.9366,2520.0,2519.7,0.04550624]
[1724866155028,2.4134,2520.4,2519.7,0.04550624]
[1724866155029,0.43433072,2520.1,2519.7,0.04550624]
[1724866155260,4.28812288,2520.3,2519.7,0.04550624]
[1724866155261,11.90568,2519.8,2519.7,0.04550624]
[1724866155427,3.96857,2519.8,2518.6,2.3111]
[1724866155627,3.96978,2519.1,2518.7,0.04491478]
[1724866155823,7.93956,2519.1,2518.7,0.04491478]
[1724866156052,3.96978,2519.1,2518.7,0.04491478]
[1724866156867,3.96945,2519.3,2518.7,0.04491478]
[1724866157173,3.96848,2519.9,2519.1,3.96966]
[1724866157336,3.96885,2519.7,2519.2,2.53977992]
[1724866157522,3.96897,2519.6,2519.2,2.50522673]
[1724866157721,3.96885,2519.7,2519.2,2.50522673]
[1724866157986,3.96885,2519.7,2519.2,2.58460666]
[1724866158534,4.38420995,2519.9,2519.2,2.58460666]
[1724866158736,4.38420995,2519.9,2519.3,0.07937974]
[1724866158970,4.38420995,2519.9,2519.4,0.04460602]
[1724866159533,3.96814,2520.1,2519.5,2.4217]
[1724866159785,3.96814,2520.1,2519.6,0.04438534]
[1724866160098,0.42881229,2520.2,2519.6,0.04438534]
[1724866160251,3.9685,2519.9,2519.6,0.04438534]
[1724866160586,7.93702,2519.9,2519.6,0.04438534]
[1724866161089,7.93701,2519.9,2519.6,0.04438534]
[1724866161479,7.93744,2519.7,2519.6,0.04438534]
[1724866161683,3.96872,2519.7,2519.6,0.04438534]
[1724866161867,8.730771,2519.9,2519.2,3.96951]
[1724866162070,8.730771,2519.9,2519.1,2.36198463]
[1724866162071,3.96874,2519.7,2519.6,0.04464664]
[1724866162252,7.93754,2519.7,2519.1,2.2826]
[1724866162453,3.96874,2519.7,2519.6,0.04464664]
[1724866162759,2.3639,2520.1,2519.6,0.04464664]
[1724866162760,3.96819,2520.1,2519.6,0.04464664]
[1724866163095,3.96826,2520.0,2519.6,0.04464664]
[1724866163692,3.96819,2520.1,2519.6,0.04464664]
[1724866164194,3.96818,2520.1,2519.6,0.04464664]
[1724866164401,4.70385168,2520.3,2519.6,4.09281329]
[1724866164402,3.96794,2520.2,2519.6,4.09281329]
[1724866164686,4.3835288,2520.3,2519.7,3.96869]
[1724866164902,4.3835288,2520.3,2519.6,0.04464664]
[1724866165045,3.9681,2520.1,2519.8,0.05169344]
[1724866165251,3.96827,2520.0,2519.7,0.04783583]
[1724866165495,3.96827,2520.0,2519.9,0.04419835]
[1724866165680,3.96827,2520.0,2519.8,0.04430866]
[1724866165880,3.96827,2520.0,2519.5,2.2826]
[1724866165881,3.96827,2520.0,2519.9,0.04419835]
[1724866166079,7.93661,2520.0,2519.9,0.04419835]
[1724866166301,3.96844,2519.9,2519.5,2.2826]
[1724866166793,3.96827,2520.0,2519.5,2.2826]
[1724866166993,3.9685,2519.9,2519.5,2.2826]
[1724866167162,3.96865,2519.8,2519.2,6.3695]
[1724866167364,3.96865,2519.8,2519.3,3.96935]
[1724866167902,3.96865,2519.8,2519.4,0.04474999]
[1724866168104,6.7474788,2520.3,2519.4,0.12412601]
[1724866168305,4.3835788,2520.3,2519.5,2.8955]
[1724866168589,3.96809,2520.1,2519.6,4.09614149]
[1724866169165,3.96809,2520.1,2519.6,4.01677464]
[1724866169372,3.96829,2520.0,2519.6,0.04795464]
[1724866170159,3.96864,2519.8,2519.6,0.04795464]
[1724866170561,3.96839,2520.0,2519.6,0.04795464]
[1724866171683,3.96842,2519.9,2519.6,0.04795464]
[1724866171887,7.93696,2519.9,2519.6,0.04795464]
[1724866172074,3.96866,2519.8,2519.6,0.04795464]
[1724866172278,3.96872,2519.7,2519.6,0.04795464]
[1724866172505,3.96872,2519.7,2519.2,6.4606]
[1724866173304,7.93753,2519.7,2519.3,0.04465237]
[1724866173458,3.96886,2519.7,2519.3,0.04465237]
[1724866173657,3.96904,2519.5,2519.2,2.4911]
[1724866173900,3.96904,2519.5,2519.4,0.04460067]
[1724866174056,3.96904,2519.5,2519.3,0.0447857]
[1724866174258,3.96904,2519.5,2519.2,2.4911]
[1724866174259,7.93818,2519.5,2519.4,0.04467534]
[1724866174485,3.96904,2519.5,2519.4,0.04467534]
[1724866174700,3.96904,2519.5,2519.2,2.4911]
[1724866174925,3.96904,2519.5,2519.4,0.04467534]
[1724866175140,3.96904,2519.5,2519.3,0.04483903]
[1724866175347,3.96904,2519.5,2519.4,0.04472868]
[1724866175649,3.96904,2519.5,2519.2,2.4911]
[1724866175810,3.96922,2519.4,2519.2,2.4911]
[1724866176135,3.96898,2519.6,2519.3,0.04484437]
[1724866176292,7.93796,2519.6,2519.3,0.04484437]
[1724866176492,7.93796,2519.6,2519.0,3.96975]
[1724866176723,3.96865,2519.8,2519.4,2.51903402]
[1724866176907,3.96865,2519.8,2519.4,2.4743]
[1724866177228,3.96837,2520.0,2519.5,0.04462367]
[1724866177556,3.96745,2520.6,2519.5,0.04462367]
[1724866177557,3.96787,2520.3,2519.7,2.4743]
[1724866177696,3.96795,2520.2,2519.7,2.4743]
[1724866177894,2.72385108,2520.5,2519.8,0.04428736]
[1724866178529,3.96801,2520.2,2519.8,0.04428736]
[1724866178718,7.93602,2520.2,2519.8,0.04428736]
[1724866178950,3.96801,2520.2,2519.7,2.4743]
[1724866179123,3.96801,2520.2,2519.9,0.05139055]
[1724866179331,3.96783,2520.3,2519.8,0.05137615]
[1724866179530,3.96783,2520.3,2520.0,0.05111877]
[1724866179732,3.96783,2520.3,2519.7,6.44298]
[1724866179733,3.96783,2520.3,2519.9,0.05124746]
[1724866179929,3.96773,2520.4,2520.1,0.0509901]
[1724866180235,3.9679,2520.3,2520.2,0.05086144]
[1724866180537,3.9681,2520.1,2519.7,2.4743]
[1724866180836,8.37417511,2520.3,2519.7,2.4743]
[1724866181000,7.93582,2520.3,2519.7,2.4743]
[1724866181199,3.96803,2520.2,2519.7,2.4743]
[1724866181425,3.96803,2520.2,2519.7,6.443]
[1724866181701,3.9677,2520.4,2519.7,6.44292]
[1724866181901,3.96723,2520.7,2520.0,3.96816]
[1724866182203,3.96723,2520.7,2520.1,3.968]
[1724866182812,3.96699,2520.8,2520.2,4.09795466]
[1724866183525,3.96717,2520.7,2520.2,0.05078679]
[1724866183710,3.96731,2520.6,2520.2,0.05078679]
[1724866184105,3.96717,2520.7,2520.1,3.96807]
[1724866184343,3.96731,2520.6,2520.3,0.05037826]
[1724866184642,7.93507,2520.5,2520.4,0.05016878]
[1724866184845,11.014677,2520.5,2520.4,0.05016878]
[1724866185008,3.96775,2520.4,2519.8,6.38748]
[1724866185206,3.96731,2520.6,2520.0,3.96814]
[1724866185546,3.96731,2520.6,2520.1,0.05062314]
[1724866187013,3.96747,2520.5,2520.1,0.05062314]
[1724866187227,3.96731,2520.6,2520.1,0.05062314]
[1724866187433,3.96716,2520.7,2520.2,3.9679]
[1724866187640,7.93439,2520.7,2520.3,0.05036583]
[1724866187805,3.96731,2520.6,2520.3,0.05036583]
[1724866188001,3.96716,2520.7,2520.2,3.9679]
[1724866188215,3.96716,2520.7,2520.3,0.05036583]
[1724866188417,3.9673,2520.6,2520.1,2.36025368]
[1724866188649,3.96716,2520.7,2520.2,0.05049448]
[1724866188951,7.9344,2520.7,2520.2,4.01842448]
[1724866189251,2.72148648,2520.9,2520.2,0.05049448]
[1724866189567,3.96751,2520.5,2520.2,0.05049448]
[1724866189860,3.96751,2520.5,2520.3,0.05036583]
[1724866190168,3.96731,2520.6,2520.3,0.05036583]
[1724866190350,3.967,2520.8,2520.2,6.3281837]
[1724866190520,6.68840648,2520.9,2520.4,0.05023718]
[1724866190521,8.34944648,2520.9,2520.4,0.05023718]
[1724866190722,3.96661,2521.1,2520.4,4.04693794]
[1724866191022,3.96661,2521.1,2520.5,4.01754855]
[1724866191023,3.96669,2521.0,2520.5,4.01754855]
[1724866191243,3.96669,2521.0,2520.5,0.05010855]
[1724866191835,3.96702,2520.8,2520.5,0.05010855]
[1724866192160,3.96783,2520.3,2519.9,2.2809]
[1724866192369,3.96757,2520.5,2519.9,6.24929]
[1724866192535,3.96764,2520.4,2519.9,2.2809]
[1724866193119,3.96764,2520.4,2519.9,6.24928]
[1724866193531,3.96764,2520.4,2519.9,2.2809]
[1724866193936,3.96764,2520.4,2519.9,6.24928]
[1724866194158,3.9673,2520.7,2520.1,3.96809]
[1724866194669,3.96748,2520.5,2520.1,3.96809]
[1724866194875,3.96689,2520.9,2520.2,6.24712]
[1724866195031,3.96689,2520.9,2520.3,0.62934232]
[1724866195232,3.96689,2520.9,2520.3,0.55]
[1724866196081,3.96707,2520.8,2520.3,0.55]
[1724866196646,3.96735,2520.6,2520.2,2.2793]
[1724866196846,3.96735,2520.6,2520.0,3.9681]
[1724866196847,3.96826,2520.0,2519.8,2.2793]
[1724866197073,7.93661,2520.0,2519.5,2.2793]
[1724866197306,3.96826,2520.0,2519.5,2.2793]
[1724866197488,3.9685,2519.9,2519.5,2.2793]
[1724866197649,3.96858,2519.8,2519.5,2.2793]
[1724866197851,3.96858,2519.8,2519.6,0.05071737]
[1724866198071,3.96841,2519.9,2519.6,0.05071737]
[1724866198579,3.9686,2519.8,2519.6,0.05071737]
[1724866199801,7.93662,2520.0,2519.6,0.05071737]
[1724866200285,3.96841,2519.9,2519.6,0.05071737]
[1724866200519,3.96856,2519.8,2519.6,0.05071737]
[1724866200789,3.96872,2519.7,2519.6,0.05071737]
[1724866201963,7.93723,2519.8,2519.6,0.05071737]
[1724866202172,3.96856,2519.8,2519.6,0.05071737]
[1724866202388,3.96872,2519.7,2519.6,0.05071737]
[1724866202570,3.96856,2519.8,2519.6,0.05071737]
[1724866203190,3.96872,2519.7,2519.6,0.05071737]
[1724866205916,4.365416,2519.8,2519.6,0.05071737]
[1724866206426,3.96872,2519.7,2519.6,0.05071737]
[1724866206610,8.334106,2519.8,2519.6,0.05071737]
[1724866206815,0.41567905,2520.2,2519.6,2.33281737]
[1724866207107,4.38369905,2520.2,2519.6,2.33281737]
[1724866207315,3.96826,2520.0,2519.6,2.33281737]
[1724866208894,4.38370905,2520.2,2519.6,0.05071737]
[1724866209100,3.96811,2520.1,2519.7,2.3841]
[1724866209301,3.96825,2520.0,2519.6,0.05071737]
[1724866209528,3.96852,2519.9,2519.6,0.05071737]
[1724866209821,0.41567905,2520.2,2519.6,0.05071737]
[1724866209822,4.38369905,2520.2,2519.6,4.01956737]
[1724866210043,3.96802,2520.2,2519.7,3.96863]
[1724866210395,3.96813,2520.1,2519.6,0.13008467]
[1724866210591,3.96832,2520.0,2519.6,0.05071737]
[1724866211941,3.96813,2520.1,2519.6,4.01957737]
[1724866212645,3.96813,2520.1,2519.6,0.05071737]
[1724866212956,7.9363,2520.1,2519.6,0.05071737]
[1724866213260,7.93634,2520.1,2519.6,0.05071737]
[1724866213463,3.96813,2520.1,2519.6,0.05071737]
[1724866213756,3.96813,2520.1,2519.6,4.01956737]
[1724866213960,0.41563214,2520.5,2519.6,4.01956737]
[1724866213961,0.41563214,2520.5,2520.0,3.96815]
[1724866214139,3.9667,2521.0,2520.2,3.96783]
[1724866214140,3.967,2520.8,2520.2,3.96783]
[1724866214342,3.967,2520.8,2520.2,3.96782]
[1724866215045,2.4541,2521.0,2520.0,6.36337]
[1724866215046,3.96765,2520.4,2520.0,2.3952]
[1724866215247,3.96815,2520.1,2519.7,2.2889]
[1724866215647,3.96838,2520.0,2519.6,0.05071737]
[1724866215848,3.96859,2519.8,2519.6,0.05071737]
[1724866216049,3.96865,2519.8,2519.6,0.05071737]
[1724866216369,3.9682,2520.1,2519.6,0.05071737]
[1724866216520,3.968,2520.2,2519.6,0.05071737]
[1724866216720,3.96786,2520.3,2519.7,3.9687]
[1724866216920,3.9677,2520.4,2519.6,0.13008533]
[1724866217121,3.96781,2520.3,2519.7,6.28972]
[1724866217564,3.96781,2520.3,2519.8,3.96854]
[1724866217966,7.93567,2520.3,2519.9,0.05863936]
[1724866218127,3.96781,2520.3,2519.9,0.05863936]
[1724866219338,6.37216,2520.5,2520.0,3.96824]
[1724866219533,3.96728,2520.7,2520.2,3.96791]
[1724866219775,7.93453,2520.7,2520.2,6.41091]
[1724866219998,3.96725,2520.7,2520.3,0.05787267]
[1724866220299,0.41559252,2521.1,2520.3,0.1372249]
[1724866220511,0.41559252,2521.1,2520.4,3.96753]
[1724866220797,3.96693,2520.9,2520.5,0.05756394]
[1724866221725,8.34887252,2521.1,2520.5,0.05756394]
[1724866222216,4.38221252,2521.1,2520.5,4.02497394]
[1724866222417,3.96671,2521.0,2520.5,0.05756394]
[1724866222634,3.96685,2520.9,2520.5,0.05756394]
[1724866223808,4.38221252,2521.1,2520.5,0.05756394]
[1724866224017,3.96692,2520.9,2520.5,0.05756394]
[1724866224537,3.96715,2520.7,2520.6,0.0569774]
[1724866224739,10.655315,2520.7,2520.6,0.0569774]
[1724866225046,3.96818,2520.1,2519.6,2.443]
[1724866225333,3.96781,2520.3,2519.7,0.05836696]
[1724866225497,3.96804,2520.2,2519.7,0.05836696]
[1724866225832,3.96812,2520.1,2519.7,0.05836696]
[1724866226144,7.93572,2520.3,2519.7,4.02707696]
[1724866226436,3.96784,2520.3,2519.7,4.02707696]
[1724866226591,7.93515,2520.5,2519.8,2.3856]
[1724866226943,3.96743,2520.6,2520.1,3.96808]
[1724866227480,7.93448,2520.7,2520.3,2.3856]
[1724866227635,7.93449,2520.7,2520.3,2.3856]
[1724866227794,3.96724,2520.7,2520.4,0.0572861]
[1724866228227,3.96694,2520.9,2520.4,0.0572861]
[1724866228441,3.96692,2520.9,2520.4,0.30157471]
[1724866228591,3.9671,2520.8,2520.4,0.0572861]
[1724866229002,7.93387,2520.9,2520.4,0.0572861]
[1724866229231,3.96712,2520.8,2520.4,0.0572861]
[1724866230000,3.96715,2520.7,2520.4,0.0572861]
[1724866230200,3.96739,2520.6,2520.4,0.0572861]
[1724866231137,3.96746,2520.5,2520.4,0.0572861]
[1724866231334,7.93492,2520.5,2520.4,0.0572861]
[1724866231558,3.96739,2520.6,2520.0,2.2716]
[1724866231852,3.96739,2520.6,2520.1,4.02584156]
[1724866232008,3.96747,2520.5,2520.1,0.05777156]
[1724866232665,3.96747,2520.5,2520.1,4.02586156]
[1724866232816,3.96728,2520.7,2520.3,3.96776]
[1724866233017,4.3826344,2520.8,2520.4,2.32536057]
[1724866233546,3.96717,2520.7,2520.4,2.32536057]
[1724866234623,0.4155544,2520.8,2520.4,2.32536057]
[1724866235444,4.3825544,2520.8,2520.4,2.32536057]
[1724866235956,0.4155544,2520.8,2520.4,2.32536057]
[1724866236255,3.96693,2520.9,2520.4,2.32536057]
[1724866236614,3.96692,2520.9,2520.4,2.32536057]
[1724866236835,3.96692,2520.9,2520.4,6.3722852]
[1724866237036,3.96692,2520.9,2520.4,6.372285]
[1724866237245,3.96668,2521.0,2520.5,3.96744]
[1724866237552,3.96684,2520.9,2520.6,0.05697735]
[1724866237917,3.96669,2521.0,2520.5,3.96742]
[1724866238253,3.96669,2521.0,2520.6,0.05697735]
[1724866239133,7.93382,2520.9,2520.6,0.05697735]
[1724866239357,3.967,2520.8,2520.6,0.05697735]
[1724866239511,3.967,2520.8,2520.4,6.23554]
[1724866239512,3.96684,2520.9,2520.4,10.20307]
[1724866239711,3.96684,2520.9,2520.5,0.05707209]
[1724866239991,3.96718,2520.7,2520.5,0.05707209]
[1724866240153,3.96684,2520.9,2520.5,0.05707209]
[1724866240358,3.96701,2520.8,2520.5,0.05707209]
[1724866240557,3.96684,2520.9,2520.5,0.05707209]
[1724866241360,4.38215334,2521.1,2520.5,0.05707209]
[1724866241515,4.38212334,2521.1,2520.5,4.02443209]
[1724866241725,7.93378,2520.9,2520.5,0.05707209]
[1724866242614,3.96668,2521.0,2520.5,4.02443209]
[1724866243049,8.34869334,2521.1,2520.6,3.96728]
[1724866243214,3.96673,2521.0,2520.5,4.02452209]
[1724866243414,3.96673,2521.0,2520.7,0.05639086]
[1724866243652,3.96673,2521.0,2520.6,0.05653775]
[1724866243838,4.38204334,2521.1,2520.7,4.03405202]
[1724866244042,0.41551334,2521.1,2520.7,4.03397202]
[1724866245368,0.41551334,2521.1,2520.7,8.00103202]
[1724866245544,0.41551334,2521.1,2520.7,4.03397202]
[1724866245857,0.41551334,2521.1,2520.8,3.96698]
[1724866246015,0.41551334,2521.1,2520.9,0.07599809]
[1724866246589,0.41551334,2521.1,2520.7,3.96714]
[1724866247200,2.4192,2522.0,2520.8,2.55235887]
[1724866247350,7.45,2522.9,2521.4,6.35001]
[1724866247351,3.96504,2522.1,2521.4,6.35001]
[1724866247547,4.38048061,2522.1,2521.5,3.96576]
[1724866247778,4.38048061,2522.1,2521.6,3.96572]
[1724866247977,0.41544061,2522.1,2521.6,3.96572]
[1724866248149,0.41544061,2522.1,2521.7,0.0866077]
[1724866248350,3.9651,2522.0,2521.7,0.0866077]
[1724866248873,8.34545061,2522.1,2521.7,0.0866077]
[1724866249189,3.96511,2522.0,2521.4,6.35004]
[1724866249389,3.96527,2521.9,2521.7,0.0866077]
[1724866249598,4.38041061,2522.1,2521.4,6.35004]
[1724866249756,0.41544061,2522.1,2521.7,4.0521377]
[1724866249948,0.41544061,2522.1,2521.7,3.96553]
[1724866250151,0.41544061,2522.1,2521.7,4.0521377]
[1724866250787,7.92944,2522.3,2521.7,4.0521377]
[1724866251006,7.92944,2522.3,2521.7,0.0866077]
[1724866251007,3.96471,2522.3,2521.7,0.0866077]
[1724866251147,3.96495,2522.1,2521.7,0.0866077]
[1724866251352,3.96495,2522.1,2521.6,3.96562]
[1724866251549,7.92942,2522.3,2521.7,4.0521377]
[1724866251766,7.92942,2522.3,2521.8,2.3841]
[1724866252262,7.92947,2522.3,2521.8,2.3841]
[1724866252567,3.96471,2522.3,2521.8,2.3841]
[1724866252761,3.96439,2522.5,2521.8,2.3841]
[1724866252961,4.37960142,2522.6,2522.0,3.96499]
[1724866253206,4.37960142,2522.6,2522.1,3.96485]
[1724866253207,0.41536142,2522.6,2522.1,3.96485]
[1724866253490,7.92762,2522.9,2522.2,6.34876]
[1724866253799,3.96378,2522.9,2522.4,3.96446]
[1724866254162,3.96358,2523.0,2522.4,3.96446]
[1724866254365,3.96411,2522.7,2522.0,2.3402]
[1724866254677,3.96488,2522.2,2522.0,2.3402]
[1724866254878,7.92979,2522.2,2522.0,2.3402]
[1724866255057,3.96417,2522.6,2521.7,2.3402]
[1724866255262,3.96516,2522.0,2521.7,2.4268077]
[1724866255773,3.96484,2522.2,2521.7,2.4268077]
[1724866255988,2.4434,2522.5,2521.7,2.4268077]